bitfinex/quotes_BTCUSD_20250205
["timestamp","ask_amount","ask_price","bid_price","bid_amount"]
[1738739599900,0.0606069,97503.0,97497.0,0.10690188]
[1738739600214,0.123065,97509.0,97501.0,0.123074]
[1738739600383,0.164082,97512.0,97502.0,0.10238506]
[1738739600590,0.12306,97514.0,97506.0,0.10238506]
[1738739600790,0.123063,97511.0,97506.0,0.10238506]
[1738739601136,0.123067,97508.0,97506.0,0.10238506]
[1738739601497,0.123067,97508.0,97507.0,0.00450016]
[1738739601675,0.123067,97508.0,97507.0,0.10238506]
[1738739601882,0.123067,97508.0,97507.0,0.10689771]
[1738739602696,0.198767,97508.0,97507.0,0.10689771]
[1738739602923,0.198767,97508.0,97507.0,0.10238506]
[1738739603129,0.199767,97508.0,97507.0,0.10238506]
[1738739603340,0.198767,97508.0,97507.0,0.10238506]
[1738739603757,0.199767,97508.0,97507.0,0.10238506]
[1738739603953,0.198767,97508.0,97507.0,0.10238506]
[1738739604408,0.712547,97508.0,97507.0,0.10238506]
[1738739605242,0.51378,97508.0,97507.0,0.10238506]
[1738739605551,0.5138869,97508.0,97507.0,0.10238506]
[1738739606064,0.5138869,97508.0,97507.0,0.10686026]
[1738739606245,0.5138869,97508.0,97507.0,0.10238506]
[1738739606604,0.5128869,97508.0,97507.0,0.10238506]
[1738739607077,0.5138869,97508.0,97507.0,0.10238506]
[1738739607305,0.8422869,97508.0,97507.0,0.10238506]
[1738739607422,0.8432869,97508.0,97507.0,0.10238506]
[1738739608104,0.123086,97493.0,97491.0,0.08171979]
[1738739608301,0.635866,97493.0,97492.0,0.10693944]
[1738739608460,0.635866,97493.0,97492.0,0.10238506]
[1738739609268,0.51278,97493.0,97492.0,0.10238506]
[1738739609488,0.51278,97493.0,97492.0,0.10692834]
[1738739610434,0.51378,97493.0,97492.0,0.10692834]
[1738739610808,0.84318,97493.0,97492.0,0.10238506]
[1738739611011,0.92138,97493.0,97492.0,0.10238506]
[1738739611341,0.92138,97493.0,97481.0,0.08171979]
[1738739611342,0.97118,97493.0,97481.0,0.08171979]
[1738739611541,0.97118,97493.0,97482.0,0.10238506]
[1738739611763,0.123098,97483.0,97482.0,0.10238506]
[1738739611899,0.123115,97470.0,97463.0,0.123123]
[1738739612103,0.51278,97470.0,97466.0,0.23005567]
[1738739612570,0.51278,97470.0,97466.0,0.10693667]
[1738739613533,0.51278,97470.0,97466.0,0.23005567]
[1738739613737,0.49378,97470.0,97466.0,0.10693667]
[1738739614153,0.49378,97470.0,97466.0,0.22550406]
[1738739614581,0.49478,97470.0,97467.0,0.00459931]
[1738739614753,0.49478,97470.0,97468.0,0.10238506]
[1738739615178,0.49478,97470.0,97469.0,0.00459375]
[1738739615380,0.49378,97470.0,97469.0,0.10697881]
[1738739616623,0.49478,97470.0,97469.0,0.10697881]
[1738739616796,0.49378,97470.0,97469.0,0.10697881]
[1738739617000,0.49378,97470.0,97469.0,0.10238506]
[1738739617181,0.49478,97470.0,97469.0,0.10238506]
[1738739617380,0.49378,97470.0,97469.0,0.10238506]
[1738739617582,0.54248,97470.0,97469.0,0.10238506]
[1738739617815,0.5435869,97470.0,97469.0,0.10238506]
[1738739618020,0.5425869,97470.0,97469.0,0.10238506]
[1738739618342,0.5435869,97470.0,97469.0,0.10238506]
[1738739619222,0.123132,97457.0,97452.0,0.00022449]
[1738739619453,0.49378,97457.0,97454.0,0.20595006]
[1738739619656,0.49378,97457.0,97454.0,0.1069953]
[1738739620433,0.616911,97457.0,97454.0,0.1069953]
[1738739620647,0.49378,97457.0,97454.0,0.1069953]
[1738739621048,0.49478,97457.0,97454.0,0.1069953]
[1738739621353,0.49378,97457.0,97454.0,0.1069953]
[1738739621567,0.49478,97457.0,97454.0,0.1069953]
[1738739622013,0.49378,97457.0,97454.0,0.1069953]
[1738739622377,0.49378,97457.0,97454.0,0.10238506]
[1738739622782,0.49378,97457.0,97455.0,0.00461809]
[1738739622979,0.49378,97457.0,97456.0,0.10238506]
[1738739623196,0.49478,97457.0,97456.0,0.10700037]
[1738739623525,0.49378,97457.0,97456.0,0.10700037]
[1738739623897,0.47578,97457.0,97456.0,0.10700037]
[1738739624102,0.597911,97457.0,97456.0,0.10700037]
[1738739624472,0.597911,97457.0,97456.0,0.10238506]
[1738739624673,0.598911,97457.0,97456.0,0.10238506]
[1738739625489,0.597911,97457.0,97456.0,0.10238506]
[1738739625708,0.597911,97457.0,97452.0,0.00022449]
[1738739625709,0.123136,97453.0,97452.0,0.00022449]
[1738739625912,0.597916,97453.0,97452.0,0.00022449]
[1738739627643,0.598916,97453.0,97452.0,0.00022449]
[1738739627845,0.597916,97453.0,97452.0,0.00022449]
[1738739628043,0.598916,97453.0,97452.0,0.00022449]
[1738739628249,0.928316,97453.0,97452.0,0.00022449]
[1738739628449,0.927316,97453.0,97452.0,0.00022449]
[1738739628637,0.928316,97453.0,97452.0,0.00022449]
[1738739629453,1.053216,97453.0,97452.0,0.00022449]
[1738739630633,1.052216,97453.0,97452.0,0.00022449]
[1738739630821,1.053216,97453.0,97452.0,0.00022449]
[1738739631620,1.052216,97453.0,97452.0,0.00022449]
[1738739631923,1.053216,97453.0,97452.0,0.00022449]
[1738739633225,1.052216,97453.0,97452.0,0.00022449]
[1738739633765,1.053216,97453.0,97452.0,0.00022449]
[1738739633972,1.052216,97453.0,97452.0,0.00022449]
[1738739634293,1.053216,97453.0,97452.0,0.00022449]
[1738739634675,1.203216,97453.0,97452.0,0.00022449]
[1738739634899,1.212216,97453.0,97452.0,0.00022449]
[1738739635035,1.213216,97453.0,97452.0,0.00022449]
[1738739635258,1.223216,97453.0,97452.0,0.00022449]
[1738739636363,1.222216,97453.0,97452.0,0.00022449]
[1738739636542,1.223216,97453.0,97452.0,0.00022449]
[1738739636959,1.222216,97453.0,97452.0,0.00022449]
[1738739637161,1.32460106,97453.0,97452.0,0.00022449]
[1738739637325,1.32560106,97453.0,97452.0,0.00022449]
[1738739638044,1.38719106,97453.0,97452.0,0.00022449]
[1738739639657,1.284806,97453.0,97452.0,0.00022449]
[1738739640992,1.203216,97453.0,97452.0,0.00022449]
[1738739641215,0.928316,97453.0,97452.0,0.00022449]
[1738739641836,0.80518,97453.0,97452.0,0.10260955]
[1738739642134,0.80518,97453.0,97452.0,0.22574655]
[1738739642566,0.80418,97453.0,97452.0,0.23037405]
[1738739643042,0.80518,97453.0,97452.0,0.23037405]
[1738739643251,0.80418,97453.0,97452.0,0.23037405]
[1738739643449,0.80418,97453.0,97452.0,0.10723705]
[1738739643657,0.80518,97453.0,97452.0,0.10260955]
[1738739643826,0.78518,97453.0,97452.0,0.10260955]
[1738739644214,0.78618,97453.0,97452.0,0.10260955]
[1738739644395,0.78518,97453.0,97452.0,0.10260955]
[1738739645488,0.78518,97453.0,97452.0,0.00022449]
[1738739645869,0.78618,97453.0,97452.0,0.00022449]
[1738739646175,0.78518,97453.0,97452.0,0.00022449]
[1738739646379,0.78618,97453.0,97452.0,0.00022449]
[1738739649098,0.83188,97453.0,97452.0,0.00022449]
[1738739651491,0.85088323,97453.0,97452.0,0.00022449]
[1738739653343,1.12337795,97453.0,97452.0,0.00022449]
[1738739653548,1.02088323,97453.0,97452.0,0.00022449]
[1738739654127,1.05129673,97453.0,97452.0,0.00022449]
[1738739655341,1.04129673,97453.0,97452.0,0.00022449]
[1738739655764,1.04029673,97453.0,97452.0,0.00022449]
[1738739656170,1.04129673,97453.0,97452.0,0.00022449]
[1738739656578,1.01088323,97453.0,97452.0,0.00022449]
[1738739656805,1.01188323,97453.0,97452.0,0.00022449]
[1738739658396,1.11426829,97453.0,97452.0,0.00022449]
[1738739658545,1.19456829,97453.0,97452.0,0.00022449]
[1738739658746,1.30706301,97453.0,97452.0,4.9e-07]
[1738739658926,1.20256829,97453.0,97452.0,4.9e-07]
[1738739659883,1.22656829,97453.0,97452.0,4.9e-07]
[1738739660217,0.413255,97438.0,97437.0,0.00022428]
[1738739660396,1.198435,97438.0,97437.0,0.00022428]
[1738739660625,1.31082006,97438.0,97437.0,0.00022428]
[1738739660765,1.32982329,97438.0,97437.0,0.00022428]
[1738739661407,1.22743823,97438.0,97437.0,0.00022428]
[1738739661917,1.25782448,97438.0,97437.0,0.00022428]
[1738739662686,1.25882448,97438.0,97437.0,0.00022428]
[1738739663147,1.25982448,97438.0,97437.0,0.00022428]
[1738739664161,1.27029567,97438.0,97437.0,0.00022428]
[1738739665250,0.84769567,97438.0,97437.0,0.00022428]
[1738739665450,0.85769567,97438.0,97437.0,0.00022428]
[1738739665654,0.85869567,97438.0,97437.0,0.00022428]
[1738739665908,0.78979567,97438.0,97437.0,0.00022428]
[1738739666043,0.63979567,97438.0,97437.0,0.00022428]
[1738739666496,0.50616948,97438.0,97437.0,0.10260934]
[1738739666889,0.45578,97438.0,97437.0,0.10260934]
[1738739667881,0.45678,97438.0,97437.0,0.10260934]
[1738739668674,0.45678,97438.0,97437.0,0.00022428]
[1738739669096,0.45578,97438.0,97437.0,0.00022428]
[1738739669315,0.45678,97438.0,97437.0,0.00022428]
[1738739669514,0.45678,97438.0,97437.0,0.10260934]
[1738739671573,0.45678,97438.0,97437.0,0.00022428]
[1738739672859,0.45678,97438.0,97437.0,0.10260934]
[1738739675223,0.45678,97438.0,97437.0,0.00022428]
[1738739677555,0.45678,97438.0,97437.0,0.10260934]
[1738739678715,0.579935,97438.0,97437.0,0.10260934]
[1738739686479,0.579935,97438.0,97437.0,0.11252934]
[1738739695090,0.45678,97438.0,97437.0,0.11252934]
[1738739695299,0.45678,97438.0,97437.0,0.36348534]
[1738739695920,0.45678,97438.0,97437.0,1.23090834]
[1738739696102,0.45578,97438.0,97437.0,1.23090834]
[1738739696501,0.45678,97438.0,97437.0,1.01046934]
[1738739696702,0.45578,97438.0,97437.0,1.01046934]
[1738739697236,0.45678,97438.0,97437.0,1.01046934]
[1738739697384,0.45678,97438.0,97437.0,1.03346934]
[1738739698172,0.45678,97438.0,97437.0,1.21443979]
[1738739698743,0.45578,97438.0,97437.0,1.21443979]
[1738739698938,0.43678,97438.0,97437.0,1.21443979]
[1738739699149,0.43778,97438.0,97437.0,1.21443979]
[1738739699354,0.395728,97438.0,97437.0,1.21443979]
[1738739699561,0.06575,97438.0,97437.0,1.17973979]
[1738739699758,0.06675,97438.0,97437.0,1.17973979]
[1738739700392,0.005172,97438.0,97437.0,1.18973979]
[1738739700567,0.0001069,97452.0,97451.0,0.273138]
[1738739700743,0.0001069,97452.0,97451.0,0.47882306]
[1738739700946,0.0001069,97452.0,97451.0,4.6185986]
[1738739701151,0.0001069,97452.0,97451.0,2.0869856]
[1738739701352,0.0001069,97452.0,97451.0,1.45021006]
[1738739701580,0.0001069,97452.0,97451.0,1.30021006]
[1738739701782,0.0001069,97452.0,97451.0,0.82249806]
[1738739702197,0.0001069,97452.0,97451.0,0.74219806]
[1738739702740,0.0011069,97452.0,97451.0,0.74219806]
[1738739702992,0.0011069,97452.0,97451.0,0.71147806]
[1738739703191,0.0011069,97452.0,97451.0,0.43932506]
[1738739703391,0.0011069,97452.0,97451.0,0.11010506]
[1738739703593,0.0011069,97452.0,97451.0,0.22392206]
[1738739703798,0.1054487,97460.0,97451.0,0.22392206]
[1738739703997,0.6184987,97460.0,97452.0,0.33933906]
[1738739704194,0.51305,97460.0,97452.0,0.10238506]
[1738739704530,0.123128,97459.0,97452.0,0.10238506]
[1738739704738,0.123135,97454.0,97453.0,0.113817]
[1738739704866,0.123132,97456.0,97453.0,0.10238506]
[1738739705083,0.51305,97454.0,97452.0,0.113817]
[1738739705448,0.123136,97453.0,97441.0,0.00772]
[1738739705565,0.51305,97453.0,97446.0,0.123144]
[1738739706386,0.636186,97453.0,97446.0,0.123144]
[1738739706886,0.636186,97453.0,97445.0,0.123146]
[1738739707288,0.51305,97453.0,97443.0,0.164198]
[1738739707491,0.51305,97453.0,97444.0,0.187196]
[1738739707691,0.51305,97453.0,97451.0,0.123138]
[1738739707891,0.51305,97453.0,97452.0,0.10238506]
[1738739709465,0.51305,97453.0,97432.0,0.00992]
[1738739709466,0.123155,97438.0,97432.0,0.00992]
[1738739709670,0.636205,97438.0,97437.0,0.11252934]
[1738739710089,0.636205,97438.0,97437.0,0.01014428]
[1738739710090,0.764405,97438.0,97437.0,0.01014428]
[1738739718422,0.914405,97438.0,97437.0,0.01014428]
[1738739719124,0.924405,97438.0,97437.0,0.01014428]
[1738739719809,0.934405,97438.0,97437.0,0.01014428]
[1738739720585,0.934405,97438.0,97432.0,0.00992]
[1738739720586,0.401161,97433.0,97432.0,0.00992]
[1738739720824,0.914211,97433.0,97432.0,0.00992]
[1738739729088,1.243611,97433.0,97432.0,0.00992]
[1738739729717,1.253611,97433.0,97432.0,0.00992]
[1738739731386,1.27254824,97433.0,97432.0,0.00992]
[1738739732848,1.3749333,97433.0,97432.0,0.00992]
[1738739733048,1.4364833,97433.0,97432.0,0.00992]
[1738739733475,1.4364833,97433.0,97420.0,0.00022428]
[1738739733476,0.123176,97421.0,97420.0,0.00022428]
[1738739733774,0.759826,97421.0,97420.0,0.00022428]
[1738739735228,1.239226,97421.0,97420.0,0.00022428]
[1738739735560,1.43207752,97421.0,97420.0,2.8e-07]
[1738739736144,1.36161106,97421.0,97420.0,2.8e-07]
[1738739736349,1.41094612,97421.0,97420.0,2.8e-07]
[1738739738184,1.49549612,97421.0,97420.0,2.8e-07]
[1738739739138,1.50561554,97421.0,97420.0,2.8e-07]
[1738739740456,1.4752555,97421.0,97420.0,2.8e-07]
[1738739740636,1.57775022,97421.0,97420.0,2.8e-07]
[1738739741862,1.4752555,97421.0,97420.0,2.8e-07]
[1738739742065,1.4422555,97421.0,97420.0,2.8e-07]
[1738739742268,1.3907055,97421.0,97420.0,2.8e-07]
[1738739742428,1.26832044,97421.0,97420.0,2.8e-07]
[1738739742628,1.11832044,97421.0,97420.0,2.8e-07]
[1738739742833,1.04022044,97421.0,97420.0,2.8e-07]
[1738739743230,1.17124542,97421.0,97420.0,2.8e-07]
[1738739744241,1.12574542,97421.0,97420.0,2.8e-07]
[1738739747340,0.85256942,97421.0,97420.0,0.10238534]
[1738739747545,0.84245,97421.0,97420.0,0.10238534]
[1738739747763,0.84245,97421.0,97420.0,0.18703616]
[1738739752822,0.51305,97421.0,97420.0,0.18703616]
[1738739753865,0.49405,97421.0,97420.0,0.18703616]
[1738739754101,0.49405,97421.0,97420.0,0.18934059]
[1738739754238,0.49405,97421.0,97420.0,0.21002647]
[1738739758823,0.47505,97421.0,97420.0,0.21002647]
[1738739759852,0.4751569,97421.0,97420.0,0.21002647]
[1738739761055,0.4751569,97421.0,97420.0,1.11961547]
[1738739761639,0.4751569,97421.0,97420.0,1.12192328]
[1738739762191,0.4751569,97421.0,97420.0,1.27192328]
[1738739762748,0.4751569,97421.0,97420.0,0.13463428]
[1738739762954,0.4751569,97421.0,97420.0,0.11935428]
[1738739763155,0.4751569,97421.0,97420.0,0.11010534]
[1738739764275,0.4751569,97421.0,97420.0,0.11706611]
[1738739764495,0.4751569,97421.0,97420.0,0.11010534]
[1738739764706,0.4751569,97421.0,97420.0,0.11567396]
[1738739765894,0.4751569,97421.0,97420.0,2.8e-07]
[1738739766313,0.8045569,97421.0,97420.0,2.8e-07]
[1738739766488,0.8835569,97421.0,97420.0,2.8e-07]
[1738739769048,1.09065408,97421.0,97420.0,2.8e-07]
[1738739777135,0.8045569,97421.0,97420.0,0.10238534]
[1738739778309,0.4751569,97421.0,97420.0,0.10238534]
[1738739778866,0.4751569,97421.0,97420.0,0.10796708]
[1738739779972,0.4751569,97421.0,97420.0,0.10238534]
[1738739780976,0.37450883,97421.0,97420.0,0.10796708]
[1738739781175,0.37450883,97421.0,97420.0,0.10238534]
[1738739781812,0.37450883,97421.0,97420.0,0.10796708]
[1738739782016,0.37450883,97421.0,97420.0,0.23114408]
[1738739782259,0.37450883,97421.0,97420.0,0.25414408]
[1738739782457,0.37450883,97421.0,97420.0,0.25553951]
[1738739782789,0.37450883,97421.0,97420.0,3.28085951]
[1738739782996,0.37450883,97421.0,97420.0,4.59726051]
[1738739783214,0.35550883,97421.0,97420.0,4.59945821]
[1738739783640,0.35550883,97421.0,97420.0,3.77913157]
[1738739783849,0.35550883,97421.0,97420.0,3.37925357]
[1738739784309,0.35550883,97421.0,97420.0,3.42895567]
[1738739785751,0.35550883,97421.0,97420.0,3.39836976]
[1738739789026,0.33650883,97421.0,97420.0,3.39836976]
[1738739790093,0.33650883,97421.0,97420.0,3.40856976]
[1738739790699,0.33650883,97421.0,97420.0,0.53008876]
[1738739790896,0.33650883,97421.0,97420.0,4.67945513]
[1738739791321,0.33650883,97421.0,97420.0,4.66945513]
[1738739791548,0.33650883,97421.0,97420.0,4.46665013]
[1738739791805,0.33650883,97421.0,97420.0,4.45645013]
[1738739792564,0.33650883,97421.0,97420.0,1.71603113]
[1738739793515,0.33650883,97421.0,97420.0,1.68548576]
[1738739794010,0.31750883,97421.0,97420.0,1.67780576]
[1738739794314,0.31750883,97421.0,97420.0,1.68548576]
[1738739794876,0.31750883,97421.0,97420.0,1.6753504]
[1738739795119,0.31750883,97421.0,97420.0,0.2538534]
[1738739795274,0.31750883,97421.0,97420.0,0.2615334]
[1738739795494,0.31750883,97421.0,97420.0,1.8080364]
[1738739795693,0.31750883,97421.0,97420.0,1.5875504]
[1738739795904,0.31750883,97421.0,97420.0,0.26591421]
[1738739796077,0.31750883,97421.0,97420.0,0.25460541]
[1738739796285,0.31750883,97421.0,97420.0,0.10793141]
[1738739796478,0.31750883,97421.0,97420.0,0.10238534]
[1738739796692,0.69650883,97421.0,97420.0,0.10238534]
[1738739796896,0.77820883,97421.0,97420.0,0.10238534]
[1738739798790,0.75920883,97421.0,97420.0,0.10238534]
[1738739799830,0.62790883,97421.0,97420.0,0.10238534]
[1738739800355,0.62790883,97421.0,97420.0,0.1093233]
[1738739800507,0.62790883,97421.0,97420.0,0.10238534]
[1738739800713,0.62790883,97421.0,97420.0,0.12704405]
[1738739800915,0.62790883,97421.0,97420.0,0.12147592]
[1738739804722,0.62790883,97421.0,97420.0,0.01909086]
[1738739805099,0.62790883,97421.0,97420.0,2.8e-07]
[1738739807483,0.90370883,97421.0,97420.0,2.8e-07]
[1738739808306,0.123189,97411.0,97410.0,0.01840009]
[1738739808510,0.75099093,97411.0,97410.0,0.12078515]
[1738739808711,0.75099093,97411.0,97410.0,0.10238506]
[1738739809296,0.123193,97408.0,97407.0,7.198e-05]
[1738739809494,0.42159493,97408.0,97407.0,0.10245704]
[1738739811043,0.55099493,97408.0,97407.0,7.198e-05]
[1738739811428,0.88039493,97408.0,97407.0,7.198e-05]
[1738739813737,0.89046143,97408.0,97407.0,7.198e-05]
[1738739816489,0.88039493,97408.0,97407.0,7.198e-05]
[1738739816900,0.88039493,97408.0,97407.0,0.00029647]
[1738739817089,0.88039493,97408.0,97407.0,0.10268153]
[1738739817293,0.79769493,97408.0,97407.0,0.10268153]
[1738739817724,0.75099493,97408.0,97407.0,0.10268153]
[1738739817861,0.75099493,97408.0,97407.0,0.10060253]
[1738739818567,0.75099493,97408.0,97407.0,0.10531678]
[1738739818742,0.62780193,97408.0,97407.0,0.10531678]
[1738739818969,0.62780193,97408.0,97407.0,0.10060253]
[1738739819144,0.62780193,97408.0,97407.0,0.10531678]
[1738739820917,0.62780193,97408.0,97407.0,0.12443063]
[1738739823141,0.62780193,97408.0,97407.0,0.15499338]
[1738739823962,0.60880193,97408.0,97407.0,0.15499338]
[1738739824312,0.27940193,97408.0,97407.0,0.15499338]
[1738739825537,0.27940193,97408.0,97407.0,0.46885138]
[1738739825756,0.27940193,97408.0,97407.0,0.37347038]
[1738739827343,0.27940193,97408.0,97407.0,0.15499338]
[1738739827543,0.27940193,97408.0,97407.0,0.46269838]
[1738739828535,0.27940193,97408.0,97407.0,0.44218638]
[1738739828738,0.26040193,97408.0,97407.0,0.44218638]
[1738739829180,0.26040193,97408.0,97407.0,0.44241087]
[1738739829378,0.26050883,97408.0,97407.0,0.44241087]
[1738739829832,0.26050883,97408.0,97407.0,0.41184812]
[1738739832730,0.26050883,97408.0,97407.0,0.43484812]
[1738739833134,0.26050883,97408.0,97407.0,0.43708508]
[1738739833350,0.26050883,97408.0,97407.0,0.51298508]
[1738739833713,0.26050883,97408.0,97407.0,0.67580779]
[1738739833905,0.24150883,97408.0,97407.0,0.67349104]
[1738739835149,0.24150883,97408.0,97407.0,0.59759104]
[1738739835351,0.24150883,97408.0,97407.0,0.60527104]
[1738739836634,0.24150883,97408.0,97407.0,0.63745091]
[1738739836766,0.24150883,97408.0,97407.0,0.60652104]
[1738739839198,0.24150883,97408.0,97407.0,0.62672104]
[1738739839400,0.24150883,97408.0,97407.0,0.73565227]
[1738739839401,0.17636976,97408.0,97407.0,0.73565227]
[1738739839600,0.07370976,97408.0,97407.0,0.73898999]
[1738739839800,0.07370976,97408.0,97407.0,0.74898999]
[1738739840008,0.07370976,97408.0,97407.0,1.07878999]
[1738739840207,0.06795118,97408.0,97407.0,1.07878999]
[1738739840417,0.00635518,97408.0,97407.0,1.06777227]
[1738739840615,0.00635518,97408.0,97407.0,1.16545227]
[1738739840910,0.00635518,97408.0,97407.0,1.17545227]
[1738739841113,0.00635518,97408.0,97407.0,1.05545227]
[1738739841325,0.00635518,97408.0,97407.0,1.02453733]
[1738739843447,0.00635518,97408.0,97407.0,1.03453733]
[1738739843867,0.07844898,97440.0,97439.0,0.123153]
[1738739844080,0.07844898,97440.0,97439.0,0.89814706]
[1738739844227,0.07844898,97440.0,97439.0,0.90506001]
[1738739844428,0.07844898,97440.0,97439.0,0.76459701]
[1738739844692,0.07844898,97440.0,97439.0,0.43240701]
[1738739845114,0.07844898,97440.0,97439.0,0.40164801]
[1738739845477,0.07844898,97440.0,97439.0,0.27849501]
[1738739847593,0.24750098,97440.0,97439.0,0.27849501]
[1738739847767,0.12434898,97440.0,97439.0,0.10929801]
[1738739847953,0.12425767,97440.0,97439.0,0.10929308]
[1738739848380,0.12425767,97440.0,97409.0,0.164254]
[1738739848606,0.0459,97426.0,97415.0,0.10238506]
[1738739848808,0.0459,97426.0,97416.0,0.17350139]
[1738739849018,0.0459,97426.0,97419.0,0.123179]
[1738739849209,0.0459,97426.0,97420.0,0.1093196]
[1738739849413,0.164228,97425.0,97420.0,0.1093196]
[1738739850446,0.164228,97425.0,97421.0,0.01915275]
[1738739850658,0.164228,97425.0,97422.0,0.10238506]
[1738739850841,0.164228,97425.0,97423.0,0.00692605]
[1738739851041,0.677448,97425.0,97424.0,0.10238506]
[1738739851574,0.59262,97425.0,97424.0,0.10238506]
[1738739851776,0.59262,97425.0,97424.0,0.12709986]
[1738739851939,0.59262,97425.0,97424.0,0.12153781]
[1738739852180,0.59262,97425.0,97424.0,0.12709986]
[1738739852381,0.59262,97425.0,97424.0,0.12639986]
[1738739852831,0.59262,97425.0,97424.0,0.12083781]
[1738739853952,0.5737269,97425.0,97424.0,0.12083781]
[1738739855660,0.4943269,97425.0,97424.0,0.24400981]
[1738739855995,0.4943269,97425.0,97424.0,0.27257608]
[1738739856269,0.4943269,97425.0,97424.0,3.20068626]
[1738739856417,0.4943269,97425.0,97424.0,3.58316726]
[1738739857588,0.4943269,97425.0,97424.0,3.27860026]
[1738739858168,0.4943269,97425.0,97424.0,3.16907922]
[1738739858348,0.4943269,97425.0,97424.0,3.14037922]
[1738739858928,0.4753269,97425.0,97424.0,3.10942426]
[1738739859100,0.4753269,97425.0,97424.0,3.140385]
[1738739859951,0.4753269,97425.0,97424.0,3.290385]
[1738739860526,0.4753269,97425.0,97424.0,3.373485]
[1738739861380,0.4753269,97425.0,97424.0,3.35433225]
[1738739862157,0.4753269,97425.0,97424.0,3.27123225]
[1738739862557,0.4753269,97425.0,97424.0,0.43804825]
[1738739862756,0.4753269,97425.0,97424.0,4.25054525]
[1738739863270,0.4753269,97425.0,97424.0,3.69735225]
[1738739863886,0.4563269,97425.0,97424.0,3.69735225]
[1738739864221,0.4563269,97425.0,97424.0,3.71651381]
[1738739865234,0.4563269,97425.0,97424.0,1.47701381]
[1738739865439,0.4563269,97425.0,97424.0,0.75504909]
[1738739865616,0.4563269,97425.0,97424.0,0.26115335]
[1738739866815,0.4563269,97425.0,97424.0,0.24199179]
[1738739868845,0.5794979,97425.0,97424.0,0.11113979]
[1738739869170,0.6403979,97425.0,97424.0,0.10190934]
[1738739870739,0.6403979,97425.0,97424.0,0.11108234]
[1738739870939,0.6403979,97425.0,97424.0,0.10190934]
[1738739873799,0.6213979,97425.0,97424.0,0.10190934]
[1738739874347,0.6213979,97425.0,97424.0,0.11108234]
[1738739874687,0.6213979,97425.0,97424.0,0.10190934]
[1738739876396,0.4183269,97425.0,97424.0,0.38815534]
[1738739876618,0.4183269,97425.0,97424.0,0.69986734]
[1738739876839,0.4183269,97425.0,97424.0,1.19823534]
[1738739877037,0.4183269,97425.0,97424.0,1.26274032]
[1738739877731,0.4183269,97425.0,97424.0,1.27317104]
[1738739878050,0.4183269,97425.0,97424.0,1.05885104]
[1738739878835,0.3993269,97425.0,97424.0,1.05885104]
[1738739879046,0.3993269,97425.0,97424.0,1.04842032]
[1738739879255,0.3993269,97425.0,97424.0,0.69055432]
[1738739879464,0.3993269,97425.0,97424.0,0.23421332]
[1738739879664,0.3993269,97425.0,97424.0,0.38293332]
[1738739880287,0.3993269,97425.0,97424.0,0.23421332]
[1738739880487,0.3993269,97425.0,97424.0,0.92644032]
[1738739880664,0.3993269,97425.0,97424.0,1.15717432]
[1738739881356,0.3993269,97425.0,97424.0,0.77056632]
[1738739883901,0.3803269,97425.0,97424.0,0.77056632]
[1738739884307,0.3803269,97425.0,97424.0,0.79356632]
[1738739885224,0.3803269,97425.0,97424.0,0.81273499]
[1738739885458,0.3803269,97425.0,97424.0,0.70093199]
[1738739886085,0.3803269,97425.0,97424.0,0.68561199]
[1738739886279,0.3803269,97425.0,97424.0,0.63479599]
[1738739886521,0.3803269,97425.0,97424.0,0.61017999]
[1738739886981,0.4266269,97425.0,97424.0,0.61017999]
[1738739887183,0.4266269,97425.0,97424.0,0.59101132]
[1738739887389,0.3803269,97425.0,97424.0,0.59101132]
[1738739887957,0.3803269,97425.0,97424.0,0.56033132]
[1738739888157,0.3803269,97425.0,97424.0,0.56801132]
[1738739888777,0.3613269,97425.0,97424.0,0.56801132]
[1738739891305,0.3613269,97425.0,97424.0,0.11104132]
[1738739891554,0.4396269,97425.0,97424.0,0.11104132]
[1738739891706,0.8146269,97425.0,97424.0,0.11104132]
[1738739892070,0.8146269,97425.0,97424.0,0.00022428]
[1738739893816,0.7956269,97425.0,97424.0,0.00022428]
[1738739898107,0.252193,97408.0,97399.0,0.08171979]
[1738739898469,0.923813,97408.0,97399.0,0.08171979]
[1738739898814,0.923813,97408.0,97398.0,0.00022407]
[1738739903671,0.923813,97408.0,97407.0,0.10385955]
[1738739904667,0.71852,97408.0,97407.0,0.10385955]
[1738739904863,0.841713,97408.0,97407.0,0.10385955]
[1738739907566,0.34222,97408.0,97407.0,1.03518755]
[1738739907769,0.34222,97408.0,97407.0,1.68750955]
[1738739907922,0.34222,97408.0,97407.0,1.69305831]
[1738739908123,0.34222,97408.0,97407.0,1.6944455]
[1738739908615,0.34222,97408.0,97407.0,1.6966899]
[1738739909745,0.34222,97408.0,97407.0,0.1130399]
[1738739909982,0.34222,97408.0,97407.0,1.8781579]
[1738739910113,0.34222,97408.0,97407.0,1.6094169]
[1738739910320,0.34222,97408.0,97407.0,0.5756159]
[1738739910538,0.34222,97408.0,97407.0,0.3694779]
[1738739910853,0.34222,97408.0,97407.0,0.1130399]
[1738739911203,0.34222,97408.0,97407.0,0.10385955]
[1738739911657,0.34222,97408.0,97407.0,0.11303296]
[1738739912012,0.34222,97408.0,97407.0,0.27305896]
[1738739913656,0.38972,97408.0,97407.0,0.11303296]
[1738739913887,0.38972,97408.0,97407.0,0.10385955]
[1738739915278,0.79592,97408.0,97407.0,0.10385955]
[1738739915653,0.79592,97408.0,97407.0,0.00147449]
[1738739916203,0.80608617,97408.0,97407.0,0.00147449]
[1738739916624,0.79592,97408.0,97407.0,0.00147449]
[1738739921721,0.94592,97408.0,97407.0,0.00147449]
[1738739930309,0.79592,97408.0,97407.0,0.00147449]
[1738739930527,0.71912,97408.0,97407.0,0.10385955]
[1738739930655,0.67162,97408.0,97407.0,0.10385955]
[1738739938577,0.794813,97408.0,97407.0,0.10385955]
[1738739939367,0.794813,97408.0,97407.0,0.00147449]
[1738739939569,0.922113,97408.0,97407.0,0.00147449]
[1738739940374,0.273204,97399.0,97398.0,0.00022407]
[1738739940576,0.742724,97399.0,97398.0,0.00022407]
[1738739941405,1.072124,97399.0,97398.0,0.00022407]
[1738739945118,1.08225367,97399.0,97398.0,0.00022407]
[1738739949961,0.794824,97399.0,97398.0,0.00022407]
[1738739951975,0.794824,97399.0,97398.0,0.10260913]
[1738739953534,0.67162,97399.0,97398.0,0.10260913]
[1738739953733,0.34222,97399.0,97398.0,0.22581413]
[1738739953929,0.34222,97399.0,97398.0,0.23278091]
[1738739954141,0.34222,97399.0,97398.0,0.10957591]
[1738739954563,0.34222,97399.0,97398.0,0.23278091]
[1738739955469,0.34222,97399.0,97398.0,0.10957591]
[1738739956195,0.465424,97399.0,97398.0,0.10957591]
[1738739956509,0.465424,97399.0,97398.0,0.10260913]
[1738739963277,0.465424,97399.0,97398.0,0.00022407]